bitfinex/quotes_BTCUSD_20240927
["timestamp","ask_amount","ask_price","bid_price","bid_amount"]
[1727426974971,0.59384494,65831.0,65830.0,0.27024774]
[1727426975191,0.58284494,65831.0,65830.0,0.26924774]
[1727426975399,0.58184494,65831.0,65830.0,0.26824774]
[1727426975829,0.58684494,65831.0,65830.0,0.26924774]
[1727426976252,0.58184494,65831.0,65830.0,0.26824774]
[1727426976466,0.58184494,65831.0,65830.0,0.154562]
[1727426976689,0.58684494,65831.0,65830.0,0.155562]
[1727426977136,0.466,65831.0,65830.0,0.156562]
[1727426977359,0.59284494,65831.0,65830.0,0.156562]
[1727426979597,0.58784494,65831.0,65830.0,0.155562]
[1727426980062,0.58684494,65831.0,65830.0,0.154562]
[1727426980500,0.59184494,65831.0,65830.0,0.154562]
[1727426981456,0.465,65831.0,65830.0,0.154562]
[1727426981675,0.59184494,65831.0,65830.0,0.154562]
[1727426982779,0.59184494,65831.0,65830.0,0.29121644]
[1727426982780,0.465,65831.0,65830.0,0.29121644]
[1727426982996,0.465,65831.0,65830.0,0.254562]
[1727426984107,0.465,65831.0,65830.0,0.333162]
[1727426984784,0.455,65831.0,65830.0,0.333162]
[1727426985017,0.455,65831.0,65830.0,0.338162]
[1727426985884,0.455,65831.0,65830.0,0.53932724]
[1727426987018,0.455,65831.0,65830.0,0.49344994]
[1727426987450,0.455,65831.0,65830.0,0.69506972]
[1727426987885,0.455,65831.0,65830.0,0.69506957]
[1727426988094,0.455,65831.0,65830.0,0.49344994]
[1727426989183,0.455,65831.0,65830.0,0.41484994]
[1727426994836,0.452,65831.0,65830.0,0.41484994]
[1727426997103,0.57884494,65831.0,65830.0,0.259562]
[1727426998405,0.452,65831.0,65830.0,0.259562]
[1727426999056,0.452,65831.0,65830.0,0.27753418]
[1727427002107,0.452,65831.0,65830.0,0.259562]
[1727427003201,0.452,65831.0,65830.0,0.27753052]
[1727427004568,0.452,65831.0,65830.0,0.2775296]
[1727427005440,0.452,65831.0,65830.0,0.259562]
[1727427016399,0.452828,65831.0,65830.0,0.46110739]
[1727427017303,0.452828,65831.0,65830.0,0.61651609]
[1727427017540,0.452828,65831.0,65830.0,0.41484994]
[1727427017759,0.452828,65831.0,65830.0,0.49244994]
[1727427018600,0.452828,65831.0,65830.0,0.41484994]
[1727427031581,0.452828,65831.0,65830.0,0.41284994]
[1727427031991,0.452828,65831.0,65830.0,0.41084994]
[1727427032542,0.452828,65831.0,65830.0,0.41284994]
[1727427034006,0.452828,65831.0,65830.0,0.41184994]
[1727427034427,0.452828,65831.0,65830.0,0.40984994]
[1727427034634,0.452828,65831.0,65830.0,0.41284994]
[1727427035088,0.452828,65831.0,65830.0,0.41484994]
[1727427039184,0.720628,65831.0,65830.0,0.259562]
[1727427040941,0.720628,65831.0,65830.0,0.254562]
[1727427041099,0.722628,65831.0,65830.0,0.254562]
[1727427041302,0.725628,65831.0,65830.0,0.254562]
[1727427041578,0.723628,65831.0,65830.0,0.254562]
[1727427041788,0.720628,65831.0,65830.0,0.254562]
[1727427042002,0.722628,65831.0,65830.0,0.254562]
[1727427042221,0.725628,65831.0,65830.0,0.254562]
[1727427046880,0.642528,65831.0,65830.0,0.254562]
[1727427048328,0.642528,65831.0,65830.0,0.40984994]
[1727427052629,0.640528,65831.0,65830.0,0.40984994]
[1727427053548,0.637528,65831.0,65830.0,0.40984994]
[1727427053995,0.638528,65831.0,65830.0,0.40984994]
[1727427054364,0.637528,65831.0,65830.0,0.40984994]
[1727427054568,0.637528,65831.0,65830.0,0.41184994]
[1727427054772,0.637528,65831.0,65830.0,0.41284994]
[1727427060971,0.717928,65831.0,65830.0,0.257562]
[1727427061205,0.717928,65831.0,65830.0,0.005656]
[1727427061458,0.869832,65831.0,65830.0,0.005656]
[1727427061936,0.869832,65831.0,65830.0,0.11664841]
[1727427062181,0.872832,65831.0,65830.0,0.002656]
[1727427062412,0.872832,65831.0,65830.0,0.003656]
[1727427062413,0.878832,65831.0,65830.0,0.003656]
[1727427062920,0.22790638,65813.0,65809.0,0.02777444]
[1727427063234,0.25201,65785.0,65779.0,0.001656]
[1727427063489,0.57884494,65785.0,65779.0,0.001656]
[1727427063736,0.452,65785.0,65779.0,0.001656]
[1727427063991,0.55106594,65780.0,65779.0,0.001656]
[1727427064253,0.152045,65770.0,65762.0,0.22790638]
[1727427064502,0.73088994,65770.0,65762.0,0.22790638]
[1727427065471,0.74488994,65770.0,65769.0,0.002656]
[1727427065969,0.74488994,65770.0,65762.0,0.22790638]
[1727427065970,0.152049,65768.0,65762.0,0.22790638]
[1727427066238,0.604049,65768.0,65762.0,0.22790638]
[1727427066473,0.79784886,65768.0,65762.0,0.22790638]
[1727427067653,0.79784886,65768.0,65756.0,0.22807618]
[1727427067881,0.81684886,65768.0,65767.0,0.003654]
[1727427068357,0.152056,65765.0,65756.0,0.22807618]
[1727427068597,0.604056,65765.0,65756.0,0.22807618]
[1727427070279,0.610056,65765.0,65764.0,0.002656]
[1727427070518,0.610056,65765.0,65764.0,0.003656]
[1727427070519,0.624056,65765.0,65764.0,0.003656]
[1727427072926,0.624056,65765.0,65749.0,0.10237]
[1727427072927,0.1763,65764.0,65749.0,0.00237]
[1727427073153,0.34588786,65751.0,65750.0,0.22973218]
[1727427073653,0.79788786,65751.0,65750.0,0.22973218]
[1727427073872,0.79788786,65751.0,65750.0,0.001656]
[1727427074095,0.79788786,65751.0,65750.0,0.002656]
[1727427074536,0.80388786,65751.0,65750.0,0.003656]
[1727427074777,0.79988786,65751.0,65750.0,0.001656]
[1727427075012,0.79988786,65751.0,65729.0,0.00268]
[1727427075013,0.0759,65739.0,65729.0,0.00268]
[1727427075238,0.34793686,65730.0,65729.0,0.00268]
[1727427075462,0.34593686,65730.0,65729.0,0.00268]
[1727427075728,0.79793686,65730.0,65729.0,0.00268]
[1727427076464,0.604137,65730.0,65729.0,0.00268]
[1727427076916,0.79793686,65730.0,65729.0,0.00268]
[1727427077373,0.81193686,65730.0,65729.0,0.00268]
[1727427077562,0.79793686,65730.0,65729.0,0.00268]
[1727427078054,0.82593686,65730.0,65729.0,0.00368]
[1727427078322,0.81193686,65730.0,65729.0,0.00368]
[1727427079456,0.64579986,65730.0,65729.0,0.00268]
[1727427079918,0.48,65730.0,65729.0,0.00268]
[1727427080138,0.466,65730.0,65729.0,0.00268]
[1727427080356,0.452,65730.0,65729.0,0.00268]
[1727427080586,0.466,65730.0,65729.0,0.00268]
[1727427081044,0.65979986,65730.0,65729.0,0.00268]
[1727427081263,0.67379986,65730.0,65729.0,0.00268]
[1727427081494,0.81193686,65730.0,65729.0,0.00268]
[1727427081722,0.64579986,65730.0,65729.0,0.00268]
[1727427081938,0.452,65730.0,65729.0,0.00268]
[1727427083117,0.457,65730.0,65729.0,0.00268]
[1727427083337,0.457,65730.0,65729.0,0.00368]
[1727427083338,0.614137,65730.0,65729.0,0.00368]
[1727427083789,0.618137,65730.0,65729.0,0.00268]
[1727427084025,0.604137,65730.0,65729.0,0.00268]
[1727427084243,0.462,65730.0,65729.0,0.00268]
[1727427084683,0.476,65730.0,65729.0,0.00368]
[1727427085132,0.462,65730.0,65729.0,0.00268]
[1727427086683,0.472,65730.0,65729.0,0.00368]
[1727427087516,0.472,65730.0,65729.0,0.155819]
[1727427087746,0.28153262,65730.0,65729.0,0.255819]
[1727427088223,0.28153262,65730.0,65729.0,0.41110694]
[1727427088945,0.28153262,65730.0,65729.0,0.41276494]
[1727427089646,0.27153262,65730.0,65729.0,0.41276494]
[1727427090124,0.26153262,65730.0,65729.0,0.41176494]
[1727427090372,0.26953262,65730.0,65729.0,0.41176494]
[1727427090618,0.27753262,65730.0,65729.0,0.41276494]
[1727427091111,0.26953262,65730.0,65729.0,0.41775303]
[1727427091340,0.26253262,65730.0,65729.0,0.41775303]
[1727427093641,0.26153262,65730.0,65729.0,0.41775303]
[1727427093834,0.26553262,65730.0,65729.0,0.41775303]
[1727427094090,0.26353262,65730.0,65729.0,0.41775303]
[1727427094331,0.26153262,65730.0,65729.0,0.41775303]
[1727427094543,0.26253262,65730.0,65729.0,0.41775303]
[1727427095252,0.26353262,65730.0,65729.0,0.41775303]
[1727427096873,0.26253262,65730.0,65729.0,0.41775303]
[1727427097339,0.26353262,65730.0,65729.0,0.41775303]
[1727427097564,0.26253262,65730.0,65729.0,0.41775303]
[1727427097792,0.26153262,65730.0,65729.0,0.41775303]
[1727427098028,0.26153262,65730.0,65729.0,0.42375303]
[1727427098268,0.26153262,65730.0,65729.0,0.42175303]
[1727427098498,0.26153262,65730.0,65729.0,0.258477]
[1727427098948,0.26153262,65730.0,65729.0,0.262477]
[1727427101710,0.26236162,65730.0,65729.0,0.262477]
[1727427102633,0.26236162,65730.0,65729.0,0.36233122]
[1727427102860,0.26236162,65730.0,65729.0,0.262477]
[1727427103805,0.26236162,65730.0,65729.0,0.30750994]
[1727427104505,0.26236162,65730.0,65729.0,0.37411195]
[1727427104963,0.26236162,65730.0,65729.0,0.262477]
[1727427106637,0.26236162,65730.0,65729.0,0.31742385]
[1727427107097,0.26236162,65730.0,65729.0,0.5174927]
[1727427107327,0.26236162,65730.0,65729.0,0.31742385]
[1727427110400,0.26236162,65730.0,65729.0,0.31342385]
[1727427110628,0.26436162,65730.0,65729.0,0.31342385]
[1727427110855,0.26436162,65730.0,65729.0,0.31142385]
[1727427111299,0.26236162,65730.0,65729.0,0.31142385]
[1727427111554,0.26336162,65730.0,65729.0,0.31142385]
[1727427111798,0.26436162,65730.0,65729.0,0.31142385]
[1727427116503,0.26436162,65730.0,65729.0,0.256477]
[1727427118463,0.26436162,65730.0,65729.0,0.41176494]
[1727427118699,0.26436162,65730.0,65729.0,0.60876494]
[1727427118925,0.26436162,65730.0,65729.0,0.66384211]
[1727427119363,0.26436162,65730.0,65729.0,0.60876494]
[1727427119591,0.26236162,65730.0,65729.0,0.60876494]
[1727427119844,0.26336162,65730.0,65729.0,0.61076494]
[1727427120079,0.26336162,65730.0,65729.0,0.61676494]
[1727427120557,0.26336162,65730.0,65729.0,0.74752674]
[1727427120774,0.26336162,65730.0,65729.0,0.75152674]
[1727427120988,0.26436162,65730.0,65729.0,0.75352674]
[1727427121461,0.26236162,65730.0,65729.0,0.72275565]
[1727427123108,0.26236162,65730.0,65729.0,0.60876494]
[1727427123576,0.26236162,65730.0,65729.0,0.61076494]
[1727427124743,0.26236162,65730.0,65729.0,0.61476494]
[1727427126082,0.26236162,65730.0,65729.0,0.61076494]
[1727427126288,0.26236162,65730.0,65729.0,0.60876494]
[1727427126496,0.26236162,65730.0,65729.0,0.62444209]
[1727427126989,0.26236162,65730.0,65729.0,0.60850094]
[1727427127210,0.26236162,65730.0,65729.0,0.61050094]
[1727427127424,0.26236162,65730.0,65729.0,0.62844415]
[1727427127875,0.26236162,65730.0,65729.0,0.62644415]
[1727427128106,0.26336162,65730.0,65729.0,0.43544415]
[1727427128380,0.11384953,65761.0,65729.0,0.43544415]
[1727427128381,0.10907576,65776.0,65773.0,0.5]
[1727427128649,0.16960306,65799.0,65789.0,0.023]
[1727427128650,0.09127669,65793.0,65789.0,0.023]
[1727427128870,0.22820803,65813.0,65795.0,0.253987]
[1727427129096,0.456789,65796.0,65795.0,0.251987]
[1727427129321,0.456789,65796.0,65795.0,0.153987]
[1727427129322,0.48061369,65796.0,65795.0,0.153987]
[1727427130043,0.48061369,65796.0,65795.0,0.253987]
[1727427130274,0.48061369,65796.0,65795.0,0.255987]
[1727427130735,0.456789,65796.0,65795.0,0.255987]
[1727427131207,0.456789,65796.0,65795.0,0.256987]
[1727427131454,0.457789,65796.0,65795.0,0.256987]
[1727427131675,0.457789,65796.0,65795.0,0.002]
[1727427131904,0.457789,65796.0,65795.0,0.153987]
[1727427132841,0.48161475,65796.0,65795.0,0.155987]
[1727427133053,0.457789,65796.0,65795.0,0.161987]
[1727427133319,0.458789,65796.0,65795.0,0.163987]
[1727427133539,0.457789,65796.0,65795.0,0.153987]
[1727427133766,0.456789,65796.0,65795.0,0.151987]
[1727427133989,0.462789,65796.0,65795.0,0.151987]
[1727427134216,0.459789,65796.0,65795.0,0.151987]
[1727427134465,0.456789,65796.0,65795.0,0.151987]
[1727427134695,0.458789,65796.0,65795.0,0.163987]
[1727427135786,0.4816147,65796.0,65795.0,0.161987]
[1727427136045,0.4806147,65796.0,65795.0,0.151987]
[1727427136253,0.4836147,65796.0,65795.0,0.151987]
[1727427136740,0.4836147,65796.0,65795.0,0.152987]
[1727427136983,0.4806147,65796.0,65795.0,0.151987]
[1727427137226,0.4806147,65796.0,65792.0,0.303986]
[1727427137452,0.4806147,65796.0,65795.0,0.156987]
[1727427137673,0.4806147,65796.0,65795.0,0.154987]
[1727427137913,0.4806147,65796.0,65795.0,0.151987]
[1727427138145,0.456789,65796.0,65795.0,0.151987]
[1727427138372,0.453789,65796.0,65795.0,0.151987]
[1727427139118,0.456789,65796.0,65795.0,0.151987]
[1727427139329,0.465789,65796.0,65795.0,0.152987]
[1727427139557,0.48961564,65796.0,65795.0,0.152987]
[1727427139791,0.48361564,65796.0,65795.0,0.251987]
[1727427140012,0.47761564,65796.0,65795.0,0.40927494]
[1727427140236,0.458789,65796.0,65795.0,0.40927494]
[1727427140456,0.463789,65796.0,65795.0,0.43227494]
[1727427140676,0.458789,65796.0,65795.0,0.43227494]
[1727427140895,0.453789,65796.0,65795.0,0.43227494]
[1727427141145,0.455789,65796.0,65795.0,0.43227494]
[1727427141395,0.22797912,65811.0,65810.0,0.253952]
[1727427141627,0.22797912,65811.0,65810.0,0.6030398]
[1727427142084,0.22797912,65818.0,65816.0,0.253938]
[1727427142324,0.22820803,65825.0,65816.0,0.6030258]
[1727427142325,0.22880812,65817.0,65816.0,0.6030258]
[1727427142556,0.000829,65817.0,65816.0,0.6030258]
[1727427143488,0.000829,65817.0,65816.0,0.6070258]
[1727427145588,0.000829,65817.0,65816.0,0.6300258]
[1727427146069,0.000829,65817.0,65816.0,0.6280258]
[1727427146333,0.000829,65817.0,65816.0,0.6260258]
[1727427146552,0.002829,65817.0,65816.0,0.6350258]
[1727427146988,0.001829,65817.0,65816.0,0.6280258]
[1727427147430,0.002829,65817.0,65816.0,0.6390258]
[1727427148116,0.002829,65817.0,65816.0,0.42222594]
[1727427148363,0.002829,65817.0,65816.0,0.164938]
[1727427148597,0.002829,65817.0,65816.0,0.166938]
[1727427148823,0.002829,65817.0,65816.0,0.164938]
[1727427149281,0.00853423,65817.0,65816.0,0.153938]
[1727427149501,0.00511715,65817.0,65816.0,0.157938]
[1727427149740,0.001829,65817.0,65816.0,0.157938]
[1727427149972,0.001829,65817.0,65816.0,0.151938]
[1727427150201,0.000829,65817.0,65816.0,0.151938]
[1727427150440,0.03964771,65817.0,65816.0,0.153938]
[1727427150625,0.03964771,65817.0,65816.0,0.002]
[1727427151260,0.03964771,65817.0,65816.0,0.153938]
[1727427151494,0.03964771,65817.0,65816.0,0.002]
[1727427151731,0.03964771,65817.0,65816.0,0.153938]
[1727427151732,0.0463529,65817.0,65816.0,0.153938]
[1727427153110,0.0433529,65817.0,65816.0,0.153938]
[1727427153351,0.03664771,65817.0,65816.0,0.153938]
[1727427153559,0.015,65817.0,65816.0,0.153938]
[1727427155929,0.47081,65817.0,65816.0,0.153938]
[1727427156566,0.47081,65817.0,65796.0,0.22797912]
[1727427156567,1.11294344,65817.0,65796.0,0.22797912]
[1727427156797,0.151954,65810.0,65803.0,0.22797912]
[1727427157028,0.151954,65810.0,65793.0,0.001654]
[1727427157029,0.2901455,65802.0,65798.0,0.151978]
[1727427157256,0.2901455,65802.0,65796.0,0.151983]
[1727427157477,0.2901455,65802.0,65798.0,0.151978]
[1727427157729,0.2901455,65802.0,65800.0,0.151975]
[1727427157964,0.2901455,65802.0,65796.0,0.303969]
[1727427157965,0.45593,65801.0,65796.0,0.151982]
[1727427158190,0.45593,65801.0,65797.0,0.151981]
[1727427158431,0.45593,65801.0,65793.0,0.001654]
[1727427158664,0.2901455,65797.0,65793.0,0.001654]
[1727427158901,0.0829,65795.0,65793.0,0.001654]
[1727427159134,0.45593,65794.0,65793.0,0.001654]
[1727427160278,0.46993,65794.0,65793.0,0.001654]
[1727427160956,0.49375845,65794.0,65793.0,0.001654]
[1727427161613,0.63174745,65794.0,65793.0,0.001654]
[1727427161844,0.80103539,65794.0,65793.0,0.001654]
[1727427162083,0.80103539,65794.0,65773.0,0.22798605]
[1727427162084,0.61121794,65794.0,65773.0,0.22798605]
[1727427162320,0.2901455,65782.0,65780.0,0.22798605]
[1727427162543,0.45593,65781.0,65773.0,0.304073]
[1727427162763,0.45593,65781.0,65776.0,0.152029]
[1727427163647,0.45593,65781.0,65775.0,0.1]
[1727427163862,0.45593,65781.0,65775.0,0.252033]
[1727427164080,0.46993,65781.0,65775.0,0.1]
[1727427164294,0.46993,65781.0,65775.0,0.252033]
[1727427164746,0.41841366,65781.0,65780.0,0.152021]
[1727427164986,0.41841366,65781.0,65780.0,0.53593892]
[1727427165205,0.41841366,65781.0,65780.0,0.64513888]
[1727427165696,0.41841366,65781.0,65780.0,0.48383369]
[1727427165912,0.43241366,65781.0,65780.0,0.48383369]
[1727427166157,0.41841366,65781.0,65780.0,0.48383369]
[1727427166382,0.40441366,65781.0,65780.0,0.48383369]
[1727427166619,0.41941366,65781.0,65780.0,0.48383369]
[1727427166837,0.41841366,65781.0,65780.0,0.48383369]
[1727427167068,0.40441366,65781.0,65780.0,0.48383369]
[1727427167306,0.40541366,65781.0,65780.0,0.48383369]
[1727427167541,0.40541366,65781.0,65780.0,0.6201088]
[1727427167776,0.40641366,65781.0,65780.0,0.62406149]
[1727427168006,0.29224506,65781.0,65780.0,0.62405909]
[1727427168256,0.29224506,65781.0,65780.0,0.48783369]
[1727427168479,0.29124506,65781.0,65780.0,0.48383369]
[1727427168943,0.29124506,65781.0,65780.0,0.40930894]
[1727427169429,0.29024506,65781.0,65780.0,0.40930894]
[1727427170089,0.29124506,65781.0,65780.0,0.40930894]
[1727427170528,0.29124506,65781.0,65780.0,0.41330894]
[1727427170982,0.29024506,65781.0,65780.0,0.54548638]
[1727427171216,0.29124506,65781.0,65780.0,0.54548638]
[1727427171448,0.29224506,65781.0,65780.0,0.41330894]
[1727427171670,0.29224506,65781.0,65780.0,0.54943277]
[1727427171909,0.29124506,65781.0,65780.0,0.54543277]
[1727427172126,0.29224506,65781.0,65780.0,0.41330894]
[1727427172564,0.29124506,65781.0,65780.0,0.41330894]
[1727427172779,0.29224506,65781.0,65780.0,0.41330894]
[1727427173021,0.29224506,65781.0,65780.0,0.258021]
[1727427173473,0.29124506,65781.0,65780.0,0.254021]
[1727427173684,0.29024506,65781.0,65780.0,0.254021]
[1727427173900,0.29224506,65781.0,65780.0,0.258021]
[1727427174146,0.29124506,65781.0,65780.0,0.258021]
[1727427174402,0.29324506,65781.0,65780.0,0.254021]
[1727427174647,0.29424506,65781.0,65780.0,0.258021]
[1727427175131,0.29424506,65781.0,65780.0,0.254021]
[1727427175132,0.29324506,65781.0,65780.0,0.254021]
[1727427175368,0.29324506,65781.0,65780.0,0.255677]
[1727427175592,0.29507306,65781.0,65780.0,0.259677]
[1727427175820,0.29207306,65781.0,65780.0,0.259677]
[1727427176078,0.29307306,65781.0,65780.0,0.259677]
[1727427176302,0.29207306,65781.0,65780.0,0.259677]
[1727427176775,0.29107306,65781.0,65780.0,0.255677]
[1727427177223,0.29207306,65781.0,65780.0,0.259677]
[1727427177657,0.29207306,65781.0,65780.0,0.255677]
[1727427177658,0.29107306,65781.0,65780.0,0.255677]
[1727427178083,0.29107306,65781.0,65780.0,0.259677]
[1727427178527,0.29107306,65781.0,65780.0,0.255677]
[1727427178728,0.29107306,65781.0,65780.0,0.39176277]
[1727427179629,0.29107306,65781.0,65780.0,0.255677]
[1727427179855,0.29207306,65781.0,65780.0,0.255677]
[1727427180057,0.29107306,65781.0,65780.0,0.255677]
[1727427180518,0.29507306,65781.0,65780.0,0.259677]
[1727427180760,0.29207306,65781.0,65780.0,0.259677]
[1727427180982,0.29107306,65781.0,65780.0,0.255677]
[1727427181417,0.29207306,65781.0,65780.0,0.39573208]
[1727427181626,0.29207306,65781.0,65780.0,0.259677]
[1727427181846,0.29207306,65781.0,65780.0,0.55102016]
[1727427182095,0.29207306,65781.0,65780.0,0.41496494]
[1727427182519,0.29307306,65781.0,65780.0,0.41496494]
[1727427182937,0.29307306,65781.0,65780.0,0.55100537]
[1727427183150,0.29307306,65781.0,65780.0,0.41496494]
[1727427184498,0.29307306,65781.0,65780.0,0.48948969]
[1727427184763,0.02382804,65787.0,65786.0,0.5441535]
[1727427184991,0.02382804,65787.0,65786.0,0.92324675]
[1727427185214,0.2288581,65796.0,65795.0,0.153987]
[1727427185425,0.2288581,65796.0,65795.0,0.75094519]
[1727427185634,0.000827,65796.0,65795.0,0.75094519]
[1727427186736,0.001827,65796.0,65795.0,0.41527494]
[1727427187383,0.001827,65796.0,65795.0,0.42727494]
[1727427187384,0.002827,65796.0,65795.0,0.42727494]
[1727427189441,0.002827,65796.0,65795.0,0.54040765]
[1727427189680,0.002827,65796.0,65795.0,0.42727494]
[1727427190340,0.001827,65796.0,65795.0,0.41527494]
[1727427190574,0.000827,65796.0,65795.0,0.40927494]
[1727427190786,0.002827,65796.0,65795.0,0.42127494]
[1727427191244,0.002827,65796.0,65795.0,0.41527494]
[1727427191245,0.001827,65796.0,65795.0,0.41527494]
[1727427191471,0.002827,65796.0,65795.0,0.42127494]
[1727427192139,0.001827,65796.0,65795.0,0.41527494]
[1727427192362,0.000827,65796.0,65795.0,0.5223539]
[1727427192592,0.001827,65796.0,65795.0,0.41527494]
[1727427193462,0.001827,65796.0,65795.0,0.41727494]
[1727427193694,0.002827,65796.0,65795.0,0.42327494]
[1727427193937,0.001827,65796.0,65795.0,0.41727494]
[1727427194156,0.000827,65796.0,65795.0,0.40927494]
[1727427194374,0.001827,65796.0,65795.0,0.41427494]
[1727427194609,0.002827,65796.0,65795.0,0.42327494]
[1727427200320,0.000827,65796.0,65795.0,0.40927494]
[1727427200535,0.001827,65796.0,65795.0,0.41527494]
[1727427200756,0.002827,65796.0,65795.0,0.43195527]
[1727427201731,0.002827,65796.0,65795.0,0.44884832]
[1727427201946,0.002827,65796.0,65795.0,0.43195527]
[1727427202155,0.002827,65796.0,65795.0,0.44884832]
[1727427202363,0.001827,65796.0,65795.0,0.42595527]
[1727427202784,0.001827,65796.0,65795.0,0.56356641]
[1727427202992,0.002827,65796.0,65795.0,0.44195527]
[1727427206165,0.002827,65796.0,65795.0,0.64223435]
[1727427206676,0.002827,65796.0,65795.0,0.54372523]
[1727427208585,0.002827,65796.0,65795.0,0.49808616]
[1727427210656,0.002827,65796.0,65795.0,0.65120367]
[1727427211353,0.002827,65796.0,65795.0,0.49808616]
[1727427217429,0.002827,65796.0,65795.0,0.6424]
[1727427219981,0.002827,65796.0,65795.0,0.49808616]
[1727427222716,0.002827,65796.0,65795.0,0.52108616]
[1727427223153,1e-06,65796.0,65795.0,1.12948333]
[1727427223596,1e-06,65796.0,65795.0,1.09386733]
[1727427223831,1e-06,65796.0,65795.0,1.06343733]
[1727427225246,1e-06,65796.0,65795.0,1.21689149]
[1727427225475,1e-06,65796.0,65795.0,1.06343733]
[1727427226816,1e-06,65796.0,65795.0,0.39608616]
[1727427227034,1e-06,65796.0,65795.0,0.34195527]
[1727427227235,1e-06,65796.0,65795.0,0.47852747]
[1727427227383,1e-06,65796.0,65795.0,0.34195527]
[1727427227807,0.3065311,65803.0,65802.0,0.151971]
[1727427228239,0.3065311,65803.0,65802.0,0.26577974]
[1727427228240,0.0785,65803.0,65802.0,0.26577974]
[1727427228476,0.0785,65803.0,65802.0,0.151971]
[1727427228709,0.0785,65803.0,65802.0,0.24303778]
[1727427228891,0.0785,65803.0,65802.0,0.09106678]
[1727427229103,0.0835,65803.0,65801.0,0.24303878]
[1727427229312,0.0835,65803.0,65802.0,0.09106678]
[1727427229934,0.0785,65803.0,65802.0,0.09109096]
[1727427230142,0.0785,65803.0,65802.0,0.151971]
[1727427230784,0.0785,65803.0,65801.0,0.11586371]
[1727427231192,0.0825,65803.0,65802.0,0.26585872]
[1727427231473,0.0825,65803.0,65802.0,0.26785872]
[1727427231691,0.0915,65803.0,65802.0,0.154971]
[1727427232161,0.0995,65803.0,65802.0,0.152971]
[1727427232949,0.0865,65803.0,65802.0,0.151971]
[1727427233316,0.0895,65803.0,65802.0,0.152971]
[1727427233731,0.0975,65803.0,65802.0,0.153971]
[1727427234147,0.0895,65803.0,65802.0,0.152971]
[1727427234363,0.090327,65803.0,65802.0,0.114869]
[1727427234574,0.098327,65803.0,65802.0,0.26784]
[1727427235001,0.098327,65803.0,65802.0,0.26984]
[1727427235217,0.098327,65803.0,65802.0,0.115869]
[1727427235880,0.098327,65803.0,65802.0,0.26784]
[1727427240185,0.098327,65803.0,65802.0,0.115869]
[1727427241784,0.250295,65803.0,65802.0,0.115869]
[1727427242014,0.098327,65803.0,65802.0,0.115869]
[1727427243903,0.250295,65803.0,65802.0,0.115869]
[1727427244023,0.098327,65803.0,65802.0,0.115869]
[1727427244229,0.250295,65803.0,65802.0,0.115709]
[1727427246430,0.098327,65803.0,65802.0,0.115709]
[1727427246629,0.250295,65803.0,65802.0,0.115709]
[1727427246950,0.432895,65803.0,65802.0,0.115709]
[1727427247803,0.424895,65803.0,65802.0,0.114709]
[1727427248287,0.432895,65803.0,65802.0,0.115709]
[1727427248726,0.421895,65803.0,65802.0,0.114869]
[1727427248953,0.435895,65803.0,65802.0,0.114869]
[1727427249429,0.435895,65803.0,65802.0,0.001]
[1727427249672,0.151984,65796.0,65795.0,0.001654]
[1727427249911,0.3454371,65796.0,65795.0,0.001654]
[1727427250388,0.36926431,65796.0,65795.0,0.001654]
[1727427250625,0.3454371,65796.0,65795.0,0.001654]
[1727427250890,0.3564371,65796.0,65795.0,0.001654]
[1727427251375,0.3454371,65796.0,65795.0,0.001654]
[1727427252062,0.3574371,65796.0,65795.0,0.001654]
[1727427252256,0.3454371,65796.0,65795.0,0.001654]
[1727427252726,0.3574371,65796.0,65795.0,0.001654]
[1727427252959,0.2054531,65796.0,65795.0,0.001654]
[1727427253209,0.023,65796.0,65795.0,0.002654]
[1727427253656,0.012,65796.0,65795.0,0.001654]
[1727427254129,0.023,65796.0,65795.0,0.154641]
[1727427254809,0.023,65796.0,65795.0,0.002654]
[1727427256293,0.04682691,65796.0,65795.0,0.002654]
[1727427258438,0.50278691,65796.0,65795.0,0.002654]
[1727427258653,0.50278691,65796.0,65795.0,0.154641]
[1727427259291,0.50278691,65796.0,65795.0,0.002654]
[1727427259779,0.69624001,65796.0,65795.0,0.002654]
[1727427260597,0.6724131,65796.0,65795.0,0.002654]
[1727427261735,0.6724131,65796.0,65795.0,0.154641]
[1727427263411,0.6724131,65796.0,65795.0,0.002654]
[1727427263636,0.6724131,65796.0,65795.0,0.154641]
[1727427263883,0.47896,65796.0,65795.0,0.154641]
[1727427264346,0.47896,65796.0,65795.0,0.22280059]
[1727427264576,0.47896,65796.0,65795.0,0.154641]
[1727427264804,0.47896,65796.0,65795.0,0.156641]
[1727427265282,0.47896,65796.0,65795.0,0.24752046]
[1727427265517,0.47896,65796.0,65795.0,0.156641]
[1727427265980,0.47896,65796.0,65795.0,0.24757011]
[1727427266445,0.47896,65796.0,65795.0,0.156641]
[1727427267343,0.47896,65796.0,65795.0,0.27024032]
[1727427269152,0.47896,65796.0,65795.0,0.156641]
[1727427269934,0.47896,65796.0,65795.0,0.46558537]
[1727427270370,0.47896,65796.0,65795.0,0.32926618]
[1727427270803,0.46796,65796.0,65795.0,0.32826618]
[1727427270938,0.45596,65796.0,65795.0,0.32826618]
[1727427271190,0.45696,65796.0,65795.0,0.32826618]
[1727427271397,0.45596,65796.0,65795.0,0.31092894]
[1727427271775,0.45596,65796.0,65795.0,0.32821096]
[1727427272231,0.45696,65796.0,65795.0,0.31092894]
[1727427272678,0.45696,65796.0,65795.0,0.155641]
[1727427272907,0.45596,65796.0,65795.0,0.155641]
[1727427273129,0.45596,65796.0,65795.0,0.153641]
[1727427273936,0.45696,65796.0,65795.0,0.153641]
[1727427275422,0.45796,65796.0,65795.0,0.153641]
[1727427275806,0.45596,65796.0,65795.0,0.153641]
[1727427276003,0.45696,65796.0,65795.0,0.153641]
[1727427276235,0.46396,65796.0,65795.0,0.154641]
[1727427276667,0.45696,65796.0,65795.0,0.153641]
[1727427276883,0.45796,65796.0,65795.0,0.153641]
[1727427279234,0.45796,65796.0,65795.0,0.155641]
[1727427279695,0.45796,65796.0,65795.0,0.153641]
[1727427282464,0.45796,65796.0,65795.0,0.30892894]
[1727427282687,0.45796,65796.0,65795.0,0.69398967]